Cogmind - Beta 16.1 @@@ ROGUE MODE // 2026.04.20 @ 17:31:11 Player: Maelyn Result: Destroyed by Y-45 Defender with Beam Rifle Performance ------------- Evolutions (2) 1000 Regions Visited (7) 1400 Robots Destroyed (36) 180 Value Destroyed (941) 941 Prototype IDs (23) 460 Alien Tech Used (0) 0 Bonus (321) 321 TOTAL SCORE: 4302 Bonus ------- Follower Combat Kills 21 Aligned with FarCom 300 Cogmind --------- Core Integrity 0/550 Matter 247/300 Energy 100/100 System Corruption 0% Temperature Cool (9) Movement Core (50) Location -8/Materials Parts ------- > --- POWER (1) -------- (None) > --- PROPULSION (4) --- (None) > --- UTILITY (4) ------ (None) > --- WEAPON (2) ------- (None) > --- INVENTORY (5) ---- Small Storage Unit Medium Storage Unit ECM Suite Cloak of Protection Mace Peak State ------------ > --- POWER ------------ Improved Ion Engine > --- PROPULSION ------- Armored Wheel Armored Wheel Armored Wheel > --- UTILITY ---------- Improved Heat Sink Large Storage Unit Structural Scanner > --- WEAPON ----------- Particle Cannon Particle Cannon > --- INVENTORY -------- Ion Engine Light Treads Aluminum Leg Aluminum Leg Armored Wheel Armored Wheel Small Storage Unit Medium Storage Unit Seismic Detector ECM Suite Small Laser Small Laser Mini Grenade Launcher Mace [Rating: 18] Favorites ----------- Power Light Nuclear Core Engine Light Ion Engine Power Core Light Nuclear Core Propulsion Armored Wheel Treads Light Treads Leg Aluminum Leg Wheel Armored Wheel Utility Large Storage Unit Device Improved Heat Sink Storage Large Storage Unit Weapon Mace Energy Gun Small Laser Energy Cannon Particle Cannon Ballistic Cannon Improved Light Cannon Launcher Grenade Launcher Impact Weapon Mace Build | -11 -10 -10 -9 -9 -9 -8 -8 ------- Run | Yrd Mat Min Mat Min Exi Min Mat Slots Evolved 4 | . . . 2 . . . 2 Power . | . . . . . . . . Propulsion 2 | . . . 1 . . . 1 Utility 2 | . . . 1 . . . 1 Weapon . | . . . . . . . . Parts Attached 33 | 3 8 1 9 8 . 3 1 Power 5 | . 2 . 1 1 . 1 . Engine 4 | . 2 . 1 . . 1 . Core 1 | . . . . 1 . . . Reactor . | . . . . . . . . Propulsion 13 | 2 2 . 3 4 . 1 1 Treads 2 | 2 . . . . . . . Leg 5 | . . . . 4 . . 1 Wheel 6 | . 2 . 3 . . 1 . Hover . | . . . . . . . . Flight . | . . . . . . . . Utility 6 | 1 1 . 3 . . 1 . Device 4 | . 1 . 2 . . 1 . Storage 2 | 1 . . 1 . . . . Processor . | . . . . . . . . Hackware . | . . . . . . . . Protection . | . . . . . . . . Artifact . | . . . . . . . . Weapon 9 | . 3 1 2 3 . . . Energy Gun 3 | . 3 . . . . . . Energy Cannon 2 | . . . 2 . . . . Ballistic Gun . | . . . . . . . . Ballistic Cannon 1 | . . . . 1 . . . Launcher 2 | . . 1 . 1 . . . Special Weapon . | . . . . . . . . Impact Weapon 1 | . . . . 1 . . . Slashing Weapon . | . . . . . . . . Piercing Weapon . | . . . . . . . . Special Melee Weapon . | . . . . . . . . Unidentified Prototypes . | . . . . . . . . Parts Lost 25 | . . . 1 9 . . 15 Power 4 | . . . 1 2 . . 1 Propulsion 10 | . . . . 3 . . 7 Utility 5 | . . . . 2 . . 3 Weapon 6 | . . . . 2 . . 4 Highest Loss Streak 15 | . . . 1 2 . . 15 To Critical Strikes . | . . . . . . . . Average Backups 10 | 3 6 8 12 12 10 9 8 Power . | 1 1 1 1 . . . . Propulsion 3 | 1 2 3 3 4 3 2 1 Utility 3 | . 1 2 3 4 4 4 4 Weapon 3 | 1 1 2 3 3 3 3 2 Tool/Special . | . . . . . . . . Unused Backups 5 | . 2 . . . . . 3 Power 1 | . 1 . . . . . . Propulsion . | . . . . . . . . Utility 4 | . 1 . . . . . 3 Weapon . | . . . . . . . . Tool/Special . | . . . . . . . . Average Slot Usage (%) 78 | . 94 100 83 80 56 91 70 Engine 4 | . 14 14 10 3 . 8 7 Core 1 | . . . . 3 . . . Treads 1 | . 21 . . . . . . Leg 6 | . . . . 12 . . 1 Wheel 19 | . 5 28 27 16 22 30 23 Device 11 | . 11 14 13 13 1 18 13 Storage 11 | . 14 14 11 11 11 11 8 Energy Gun 3 | . 27 14 6 . . . 6 Energy Cannon 3 | . . . 13 3 . . . Ballistic Cannon 1 | . . . . 3 . . . Launcher 7 | . . 13 1 7 11 11 3 Impact Weapon 5 | . . . . 5 11 11 4 Peak Build Rating 18 | 3 11 11 18 18 10 15 17 Average Rating 12 | 2 7 11 13 14 9 13 12 On Entrance 9 | . 3 11 11 17 9 10 15 Avg Prop Armor Cover (%) 13 | . . . 11 12 17 17 25 Naked Turns 2 | . . . . . . . 2 Heaviest Build 37 | 5 15 15 37 33 26 36 36 Greatest Support 46 | 40 40 24 36 38 3 34 46 Greatest Overweight (x) 8 | . 4 . 3 8 8 8 6 Average Overweight (x) 1 | . . . . 1 8 1 . Largest Inventory Capacity 15 | 8 8 8 15 15 15 15 15 Average Capacity 14 | 6 8 8 14 15 15 15 14 Most Carried 15 | 7 8 8 14 15 11 11 9 Average Carried 10 | 4 6 8 12 12 10 9 8 Final Capacity 15 | 8 8 8 15 15 15 15 5 Final Carried 14 | 7 8 8 14 10 10 10 5 Class Distribution -------------------- 100% | Mutant Dominant Class ---------------- Mutant | -10/Materials Mutant | -10/Mines Mutant | -9/Materials Mutant | -9/Mines Mutant | -9/Exiles Mutant | -8/Mines Mutant | -8/Materials Resources | -11 -10 -10 -9 -9 -9 -8 -8 ----------- Run | Yrd Mat Min Mat Min Exi Min Mat Matter Collected 834 | 69 . 52 203 321 . 139 50 Remotely . | . . . . . . . . Salvage Created 922 | . 162 128 347 182 . 21 82 Parts 60 | . 10 6 25 13 . 2 4 Haulers Intercepted . | . . . . . . . . Recyclers Shooed . | . . . . . . . . Parts Field Recycled . | . . . . . . . . Retrieved Matter . | . . . . . . . . Parts Self-Destructed . | . . . . . . . . Prevented . | . . . . . . . . Parts Restored . | . . . . . . . . Kills | -11 -10 -10 -9 -9 -9 -8 -8 ------- Run | Yrd Mat Min Mat Min Exi Min Mat Combat Hostiles Destroyed 27 | . 3 4 8 8 . . 4 Guns 6 | . 3 1 . . . . 2 Cannons 9 | . . . 8 1 . . . AOE 12 | . . 3 . 7 . . 2 Classes Destroyed 10 | . 3 . 4 3 . . . Worker 1 | . . . 1 . . . . Builder 1 | . 1 . . . . . . Tunneler 4 | . . . . 2 . 1 1 Recycler 1 | . . . . 1 . . . Operator 2 | . . . 2 . . . . Watcher 1 | . 1 . . . . . . Swarmer 7 | . . . 3 3 . . 1 Grunt 16 | . 3 4 2 4 . . 3 Sentry 3 | . . . 3 . . . . Assembled 1 | . . . . 1 . . . Best Kill Streak 6 | . 2 2 6 4 . 1 5 Combat Bots Only 5 | . 2 2 5 3 . . 4 Max Kills in Single Turn 2 | . 1 2 2 2 . 1 1 Gunslinging . | . . . . . . . . Exploded 2 | . . 2 . 2 . . 1 Melee . | . . . . . . . . Uniques/NPCs Destroyed . | . . . . . . . . Combat | -11 -10 -10 -9 -9 -9 -8 -8 -------- Run | Yrd Mat Min Mat Min Exi Min Mat Hostile Shots Fired 341 | . 24 18 47 64 . . 188 Missed 108 | . 8 5 15 22 . . 58 Hits 233 | . 16 13 32 42 . . 130 Melee 7 | . . . . 7 . . . Projectile 226 | . 16 13 32 35 . . 130 AOE 11 | . . . . 11 . . . Critical Strikes 5 | . . 1 . . . . 4 Damage Taken 3056 | . 195 297 431 842 . . 1291 Core 1026 | . 53 57 136 218 . . 562 Absorbed by Shields . | . . . . . . . . Core Remaining (%) 55 | 100 . 56 . . . 11 . Volleys Fired 90 | . 14 9 22 32 . . 13 Largest 2 | . 2 2 2 1 . . 2 Hottest 136 | . 80 70 136 33 . . 80 Shots Fired 134 | . 28 15 38 32 . . 21 Gun 56 | . 28 9 3 . . . 16 Cannon 55 | . . . 35 20 . . . Launcher 23 | . . 6 . 12 . . 5 Special . | . . . . . . . . Kinetic 20 | . . . . 20 . . . Thermal 91 | . 28 9 38 . . . 16 Explosive 23 | . . 6 . 12 . . 5 Electromagnetic . | . . . . . . . . Robot Hit Streak 6 | . 6 6 3 4 . . 5 Robot Miss Streak 4 | . 2 2 4 3 . . 4 Penetration Max . | . . . . . . . . Secondary Targets 2 | . 1 . . . . . 1 Max Gunslinging Chain 1 | . 1 . . . . . 1 Shots Hit Robots 76 | . 19 9 19 14 . 2 13 Core Hits 60 | . 10 8 12 19 . . 11 Critical Kills . | . . . . . . . . Critical Parts Destroyed . | . . . . . . . . Critical Strikes . | . . . . . . . . Melee Attacks 3 | . . . . 1 . 2 . Impact 3 | . . . . 1 . 2 . Slashing . | . . . . . . . . Piercing . | . . . . . . . . Sneak Attacks 3 | . . . . 1 . 2 . Combat Hostiles . | . . . . . . . . Follow-up Attacks . | . . . . . . . . Damage Inflicted 2472 | . 213 344 416 764 . 144 591 Guns 382 | . 213 54 . . . . 115 Cannons 507 | . . . 409 98 . . . Explosions 1344 | . . 290 . 578 . . 476 Melee 194 | . . . . 50 . 144 . Ramming 45 | . . . 7 38 . . . Kinetic 98 | . . . . 98 . . . Thermal 791 | . 213 54 409 . . . 115 Explosive 1344 | . . 290 . 578 . . 476 Electromagnetic . | . . . . . . . . Impact 194 | . . . . 50 . 144 . Slashing . | . . . . . . . . Piercing . | . . . . . . . . Highest Corruption . | . . . . . . . . Average Corruption . | . . . . . . . . Corruption Purged . | . . . . . . . . Corruption Blocked . | . . . . . . . . Overload Shots . | . . . . . . . . Overflow Damage 112 | . . . . 10 . 84 18 Projectiles . | . . . . . . . . Explosions 18 | . . . . . . . 18 Melee 94 | . . . . 10 . 84 . Knockbacks 1 | . . . 1 . . . . Impact 1 | . . . 1 . . . . Kinetic . | . . . . . . . . Secondary . | . . . . . . . . Self-Inflicted Damage 137 | . . 106 3 28 . . . Shots 5 | . . 4 . 1 . . . Rammed 2 | . . . 1 1 . . . Targets Rammed 7 | . . . 1 6 . . . Kicked 5 | . . . . 5 . . . Crushed . | . . . . . . . . Highest Temperature 638 | . 204 123 638 . . . 71 Average Temperature 143 | . 74 48 244 . . . 44 Received Heat Transfer 705 | . 111 126 144 72 . . 252 Effects 20 | . . . 20 . . . . Shutdowns 3 | . . . 3 . . . . Energy Bleed 2 | . . . 2 . . . . Interference 4 | . . . 4 . . . . Short Circuit 2 | . . . 2 . . . . Damage (major) 8 | . . . 8 . . . . Damage (core) 1 | . . . 1 . . . . Siege Activations . | . . . . . . . . Martial Activations . | . . . . . . . . Shielding Activations . | . . . . . . . . Robots Disrupted . | . . . . . . . . Combat Hostiles . | . . . . . . . . Robots Corrupted . | . . . . . . . . Combat Hostiles . | . . . . . . . . Parts Fried 1 | . . . . . . 1 . Impact Corruptions 3 | . . . . 1 . 2 . Robots Melted . | . . . . . . . . Combat Hostiles . | . . . . . . . . Parts Melted 2 | . . . 1 . . . 1 Heat Transferred 1590 | . 475 125 740 . . . 250 Parts Sabotaged . | . . . . . . . . Parts Stolen . | . . . . . . . . Parts Stripped . | . . . . . . . . Power Chain Reactions . | . . . . . . . . Alert | -11 -10 -10 -9 -9 -9 -8 -8 ------- Run | Yrd Mat Min Mat Min Exi Min Mat Maximum Alert Level . | . . . . . . . . Low Security (%) 100 | 100 100 100 100 100 . 100 100 Level 1 . | . . . . . . . . Level 2 . | . . . . . . . . Level 3 . | . . . . . . . . Level 4 . | . . . . . . . . Level 5 . | . . . . . . . . High Security . | . . . . . . . . Max Security . | . . . . . . . . Peak Influence 199 | . 50 73 199 88 . 5 59 Initial 60 | . . . 12 60 . . . Average 25 | . 17 29 53 27 . . 11 Influence Increases 959 | . 82 135 274 310 . 5 153 Destroy 0b10 Robot/C 580 | . 60 80 160 200 . . 80 Destroy 0b10 Robot/NC 50 | . 10 . 15 15 . 5 5 Destroy Leader 122 | . 12 20 50 20 . . 20 Allied During Kill 18 | . . . . 18 . . . Successful Hack 28 | . . . 4 . . . 24 Disable Machine 15 | . . 15 . . . . . Destroy Structure 101 | . . 20 . 57 . . 24 Lose Combat Pursuer 45 | . . . 45 . . . . Influence Decreases 959 | . 82 102 153 436 28 5 153 Entered New Map 143 | . . . 21 94 28 . . Time Decay 648 | . 82 102 122 284 . 5 53 Lost Part 120 | . . . 10 10 . . 100 Lost Ally 48 | . . . . 48 . . . Squads Dispatched 6 | . 1 . 4 1 . . . Investigation 1 | . . . 1 . . . . Extermination . | . . . . . . . . Reinforcement 4 | . 1 . 3 . . . . Assault 1 | . . . . 1 . . . Garrison . | . . . . . . . . Intercept . | . . . . . . . . Searches Triggered . | . . . . . . . . Construction Impeded . | . . . . . . . . Haulers Reinforced . | . . . . . . . . Active Scanning Responses . | . . . . . . . . Cargo Convoy Interrupts . | . . . . . . . . Stealth | -11 -10 -10 -9 -9 -9 -8 -8 --------- Run | Yrd Mat Min Mat Min Exi Min Mat Distress Signals 7 | . 1 . 3 . . . 3 Communications Jammed . | . . . . . . . . Distress Signals . | . . . . . . . . Times Spotted 59 | . 5 4 19 13 . . 18 Peak Tracking Total 9 | . 3 2 5 3 . . 9 Tactical Retreats 2 | . . . 1 1 . . . Traps | -11 -10 -10 -9 -9 -9 -8 -8 ------- Run | Yrd Mat Min Mat Min Exi Min Mat Traps Triggered . | . . . . . . . . Indirectly . | . . . . . . . . Trap Hack Attempts . | . . . . . . . . Triggered . | . . . . . . . . Disarmed . | . . . . . . . . Reprogrammed . | . . . . . . . . Reused . | . . . . . . . . Traps Extracted . | . . . . . . . . Installed . | . . . . . . . . Triggered . | . . . . . . . . Machines | -11 -10 -10 -9 -9 -9 -8 -8 ---------- Run | Yrd Mat Min Mat Min Exi Min Mat Machines Disabled 1 | . . 1 . . . . . Max in Single Turn 1 | . . 1 . . . . . Machines Repaired . | . . . . . . . . Machines Dismantled . | . . . . . . . . Machines Sabotaged . | . . . . . . . . Overloaded Fab Kills . | . . . . . . . . Hacking | -11 -10 -10 -9 -9 -9 -8 -8 --------- Run | Yrd Mat Min Mat Min Exi Min Mat Machines Accessed 7 | . . . 4 . 1 . 2 Terminals 6 | . . . 4 . . . 2 Fabricators . | . . . . . . . . Repair Stations . | . . . . . . . . Recycling Units . | . . . . . . . . Scanalyzers . | . . . . . . . . Garrison Access . | . . . . . . . . Total Hacks 15 | . . . 10 . 1 . 4 Successful 8 | . . . 4 . 1 . 3 Failed 7 | . . . 6 . . . 1 Catastrophic . | . . . . . . . . Database Lockouts . | . . . . . . . . Manual 15 | . . . 10 . 1 . 4 Terminals 14 | . . . 10 . . . 4 Fabricators . | . . . . . . . . Repair Stations . | . . . . . . . . Recycling Units . | . . . . . . . . Scanalyzers . | . . . . . . . . Garrison Access . | . . . . . . . . Terminal Hacks 3 | . . . 1 . 1 . 1 Terminal Index 2 | . . . 1 . . . 1 Proto ID Catalog 1 | . . . . . 1 . . Fabricator Hacks . | . . . . . . . . Repair Station Hacks . | . . . . . . . . Recycling Unit Hacks . | . . . . . . . . Scanalyzer . | . . . . . . . . Garrison Access Hacks . | . . . . . . . . Unauthorized Hacks 5 | . . . 3 . . . 2 Terminals 5 | . . . 3 . . . 2 Botnet 4 | . . . 3 . . . 1 Operators 1 | . . . . . . . 1 Fabricators . | . . . . . . . . Repair Stations . | . . . . . . . . Recycling Units . | . . . . . . . . Scanalyzers . | . . . . . . . . Garrison Access . | . . . . . . . . Data Cores Recovered . | . . . . . . . . Used . | . . . . . . . . Hacking Detections 4 | . . . 4 . . . . Full Trace Events 2 | . . . 2 . . . . Feedback Events . | . . . . . . . . Feedback Blocked . | . . . . . . . . Robot Schematics Acquired . | . . . . . . . . Robots Built . | . . . . . . . . Authchips . | . . . . . . . . Time . | . . . . . . . . Total Robot Build Rating . | . . . . . . . . Part Schematics Acquired . | . . . . . . . . Parts Built . | . . . . . . . . Authchips . | . . . . . . . . Time . | . . . . . . . . Total Part Build Rating . | . . . . . . . . Part Studies Acquired . | . . . . . . . . Parts Repaired . | . . . . . . . . Time . | . . . . . . . . Parts Recycled . | . . . . . . . . Recycled Matter . | . . . . . . . . Retrieved Matter . | . . . . . . . . Retrieved Components . | . . . . . . . . Parts Scanalyzed . | . . . . . . . . Part Schematics Acquired . | . . . . . . . . Parts Damaged . | . . . . . . . . Bothacking | -11 -10 -10 -9 -9 -9 -8 -8 ------------ Run | Yrd Mat Min Mat Min Exi Min Mat Used RIF Installer . | . . . . . . . . Robots Hacked . | . . . . . . . . Non-combat . | . . . . . . . . Combat . | . . . . . . . . Robot Hacks Applied . | . . . . . . . . Relay Couplers Released . | . . . . . . . . Fabnet Peak Effective % . | . . . . . . . . Robots Rewired . | . . . . . . . . Allies Hacked . | . . . . . . . . Hacks Repelled . | . . . . . . . . Allies | -11 -10 -10 -9 -9 -9 -8 -8 -------- Run | Yrd Mat Min Mat Min Exi Min Mat Total Allies 4 | . . . . 4 . . . Largest Group 4 | . . . . 4 . . . Highest-Rated Group 71 | . . . . 71 . . . Highest-Rated Ally 31 | . . . . 31 . . . Total Orders . | . . . . . . . . Ally Attacks 12 | . . . . 12 . . . Total Damage 138 | . . . . 138 . . . Kills 3 | . . . . 3 . . . Allies Corrupted . | . . . . . . . . Allies Melted . | . . . . . . . . Intel | -11 -10 -10 -9 -9 -9 -8 -8 ------- Run | Yrd Mat Min Mat Min Exi Min Mat Active Infowar (turns) 2472 | . 231 291 294 1088 132 268 168 Structural 830 | . . . 270 . 132 268 160 Seismic 2015 | . 231 291 41 1088 . 196 168 Robot Analysis Total . | . . . . . . . . Derelict Logs Recovered 3 | . . 1 . 2 . . . Drone Launches . | . . . . . . . . Drone Recoveries . | . . . . . . . . Exploration | -11 -10 -10 -9 -9 -9 -8 -8 ------------- Run | Yrd Mat Min Mat Min Exi Min Mat Turns Passed 5010 | 66 266 291 360 2593 952 268 214 Spaces Moved 2587 | 36 148 295 274 1264 212 206 152 Core 364 | 2 5 . . 126 212 12 7 Treads 131 | 34 93 . . . . 4 . Legs 846 | . . . . 834 . . 12 Wheels 1246 | . 50 295 274 304 . 190 133 Hover . | . . . . . . . . Flight . | . . . . . . . . Fastest Speed 50 | 50 90 90 90 120 450 101 87 Average Speed 180 | 153 139 90 102 196 450 124 110 Slowest Speed 450 | 160 250 90 135 450 450 450 350 Overloaded Moves . | . . . . . . . . Propulsion Burnouts . | . . . . . . . . Robots Hopped . | . . . . . . . . Potential Cave-ins . | . . . . . . . . Cave-ins Triggered . | . . . . . . . . Exploration Rate (%) 43 | 4 30 63 31 99 60 51 12 Regions Visited 7 Branch Regions 4 Pre-discovered Areas 1 | . . 1 . . . . . Known Exits Taken 1 | . . . . . . 1 . Unknown Exits Taken 6 | 1 1 1 1 1 1 . . Scrap Searched 5 | . . 1 . 2 . 2 . Spaces Dug . | . . . . . . . . Terrain Destroyed 148 | . . 44 . 74 . . 30 Melee . | . . . . . . . . Projectile . | . . . . . . . . AOE 148 | . . 44 . 74 . . 30 Terrain Rammed . | . . . . . . . . Walls Destroyed . | . . . . . . . . Machines Disabled . | . . . . . . . . Actions | -11 -10 -10 -9 -9 -9 -8 -8 --------- Run | Yrd Mat Min Mat Min Exi Min Mat Total 2775 | 45 179 304 311 1335 213 214 174 Wait 10 | . . . . 10 . . . Move 2580 | 35 147 294 273 1263 211 205 152 Hop . | . . . . . . . . Pick Up 20 | 7 5 . 3 1 1 3 . Fast Attach 14 | 3 3 . 4 3 . . 1 Attach 20 | . 3 . 1 7 1 3 5 Detach 4 | . 1 . 2 1 . . . Swap 17 | . 2 1 5 5 . 1 3 Drop 8 | . 4 . . 4 . . . Fire 90 | . 14 9 22 32 . . 13 Melee 3 | . . . . 1 . 2 . Ram 2 | . . . 1 1 . . . Kick 5 | . . . . 5 . . . Crush . | . . . . . . . . Escape Stasis . | . . . . . . . . Rewire 2 | . . . . 2 . . . Trap . | . . . . . . . . Miscellaneous . | . . . . . . . . Route ------- -11/Scrapyard -10/Materials -10/Mines -9/Materials (discovered 2 exits: Mat / [*Min]) -9/Mines (discovered 3 exits: *Mat x2 / *Exi) -9/Exiles -8/Mines -8/Materials (discovered 3 exits: Fac x2 / [*Sto]) History --------- Turn | Location | Event 2 | -11/Scrapyard | Met Revision 17 20 | -11/Scrapyard | Discovered new exit (range 15) 67 | -11/Scrapyard | Entered Materials 232 | -10/Materials | Discovered new exit (range 9) 329 | -10/Materials | Build established: Mutant 333 | -10/Materials | Entered Mines 371 | -10/Mines | Met a Derelict bent on vengeance 616 | -10/Mines | Discovered new exit (range 6) 619 | -10/Mines | Learned 2 Materials zone layouts 620 | -10/Mines | Learned location of Storage (-8) 624 | -10/Mines | Entered Materials 624 | -9/Materials | Evolved 2 slots: Propulsion x1, Utility x1 625 | -9/Materials | Identified exit to Materials 967 | -9/Materials | Discovered new exit (range 8) 984 | -9/Materials | Entered Mines 985 | -9/Mines | Met a Derelict testing a Signal Generator 1031 | -9/Mines | YI-UF0 nonchalantly dropped a Grenade Launcher on the ground 1223 | -9/Mines | Learned 4 Materials zone layouts 1397 | -9/Mines | Learned Materials stockpile data 1452 | -9/Mines | Discovered new exit (range 6) 1548 | -9/Mines | Assisted by bots powering up and referring to "LRC-V3" 1579 | -9/Mines | Discovered exit to Materials (range 5) 1654 | -9/Mines | Discovered exit to Materials (range 8) 1679 | -9/Mines | Lost 4 allies 1682 | -9/Mines | Core integrity fell below 50% 2163 | -9/Mines | Excavation squad dispatched 2163 | -9/Mines | A large section of the Mines collapsed 3014 | -9/Mines | Core integrity fell below 20% 3577 | -9/Mines | Entered Exiles 3690 | -9/Exiles | Met 8R-AWN 3766 | -9/Exiles | Met EX-HEX 3888 | -9/Exiles | Met EX-BIN 3942 | -9/Exiles | Aligned with FarCom system 3946 | -9/Exiles | Given EX-Vault access code 4059 | -9/Exiles | Opened EX-Vault 4090 | -9/Exiles | Found Cloak of Protection 4181 | -9/Exiles | Warned to stay clear of 0b10 Research branches 4303 | -9/Exiles | Met EX-DEC 4457 | -9/Exiles | Discovered new exit (range 14) 4529 | -9/Exiles | Left Exiles lab with Cloak of Protection 4529 | -9/Exiles | Entered Mines 4789 | -8/Mines | Discovered exit to Materials (range 8) 4797 | -8/Mines | Entered Materials 4797 | -8/Materials | Evolved 2 slots: Propulsion x1, Utility x1 4798 | -8/Materials | Identified exit to Factory 4982 | -8/Materials | Core integrity fell below 50% 5007 | -8/Materials | Core integrity fell below 20% 5007 | -8/Materials | Discovered new exit (range 16) 5011 | -8/Materials | Destroyed by Y-45 Defender with Beam Rifle Last Messages --------------- 04961_ Switching to secondary target: Y-45 Defender. 04962_ U-05 Engineer lays Concrete. 04962_ Sml. Laser destroyed. 04963_ Arm. Wheel destroyed. 04963_ U-05 Engineer lays Concrete. 04965_ U-05 Engineer builds a Wall. 04965_ Seismic Detector destroyed. 04966_ Aluminum Leg destroyed. 04966_ S-10 Pest destroyed. 04970_ U-05 Engineer lays Concrete. 04970_ Sml. Laser destroyed. 04971_ U-05 Engineer lays Concrete. 04975_ S-10 Pest destroyed. 04980_ Grenade Launcher destroyed. 04995_ Aluminum Leg destroyed. 04997_ K-01 Serf cleans the Processing Tank. 04998_ Lgt. Treads destroyed. 05007_ K-01 Serf collects debris. 05007_ EXIT=FOUND 05009_ Lrg. Storage Unit destroyed. Map ----- +----------------------------------------------------+ | ??????????????????????? #??# #?????###### | | ??????????????????????? #??# #????????### | | ??????????????????????? #### #????????# | | ??????????????????????? ########## | | ??????????????????????? | | ??????????????????????? ########## | | ??????o????????????????######+#########????????# | | ???????????????????????????????????????????????? | | ???????????????????????????????!???????????????? | | ???????????????????????????????????????????????? | | ???????????????????????????????????????????????? | | ???????????????????????????????????????????????? | | ???????????????????????????????????????????????? | | ???????????????????????????????????????????????? | | ???????????????????????????????????????????????? | | ?????????????? ????????????????????????????????? | | ??????????????? s??????????????????????????????? | | ??????????????w ################??????????????? | | ???????????????? s ???????????????? | | ???????????w????? ss #????????????????#+ | | ?????????????? """"" #???????????????? | | ??????????## [ """"" #???????????????? | | ??????????## """"" #???????????????? ] | | ??????????## #???????????????? | | ??????????## #######?????????? | | ??? #####?## """"" @ ??????? | | ??? #####?## """"" Y??????? | | ??? # ? # """"" ss * ??????? | | ??? # # s############## ???????? | | ??? #=== # ##??????????????????????## | | ??? #=== # s #########??????????????? | | ? #== # r g! Y #########??????????????? | | ?#### # !! s ##????????????????? | | ? + %= "T" ##????????????????? | | ???## *%[ """ ##????????????????? | | ???## * =% ###+##### ####??????????????? | | ???## "" [#%%!#%[ # ####??????????????? | | ???## Y" # #=# """ # T##??????????????? | | ???##! "" # %## """"" # ""##??????????????? | | ???## """"" # ####??????????????? | | ???###### ## # """"" # ####??????????????? | | ???########## ### """ # ##????????????????? | | ??????????### ### # ############??????? | | ??????????## ########### ############??????? | | ??????????## # ##??????? | | ??????????## T + ##??????? | | ??????????## # """ """ ##??????? | | ??????????## ####### # """ """ ##??????? | | ??????????############## # """ """ ##??????? | | ??????????#########???## ##### ##??????? | +----------------------------------------------------+ Best States ------------- Heat Dissipation 42 Energy Generation 14 Energy Capacity 275 Matter Stores 300 Matter Capacity 300 Sight Range 16 Terrain Scan Density 10 Evasion (%) 55 Recoil Reduction 2 Item Schematics ----------------- None Robot Schematics ------------------ None Fabricated ------------ Nothing Repaired ---------- Nothing Studied --------- None Alien Tech Used ----------------- None Achievements -------------- None Challenges ------------ None Game ------ Seed ShadeLobotomyEdition Manual? 0 Play Time 00:26:11 Cumulative 69.0 hours Start 2026.04.20 @ 17:05:00 End 2026.04.20 @ 17:31:11 Sessions 1 Manual Loads 0 Difficulty Rogue Special Mode None Game No. 136 Rogue 136 Adventurer 0 Explorer 0 Win Type - Total 0 Types 0/0/0/0/0/0/0/0/0/0 Lore% 15 Gallery% 33 Achievement% 23 Wizard Run 0 Options --------- Layout 0 ASCII 0 Keyboard 0 Movement Vi Keybinds 0 Fullscreen 2 Font 18/T_Terminus Map View 76x50 Zoom Use 0% Tactical HUD 1 Map Filters SHIFT_HUE(5) Filters LOW_CONTRAST(10,2,20)|SHIFT_HUE(5) Steam 1 RUN: a0488949-b113-4c3d-a453-ad5cd7166b83